Cogmind - Beta 15 @@@ ROGUE MODE // 2025.08.04 @ 22:38:42 Player: Pixel Result: Destroyed by G-34 Mercenary with Small Laser Performance ------------- Evolutions (0) 0 Regions Visited (2) 400 Robots Destroyed (20) 100 Value Destroyed (430) 430 Prototype IDs (0) 0 Alien Tech Used (0) 0 Bonus (0) 0 TOTAL SCORE: 930 Bonus ------- None Cogmind --------- Core Integrity 0/250 Matter 270/300 Energy 250/250 System Corruption 1% Temperature Cool (6) Movement Walking (400) Ox4 Location -10/Mines Parts ------- > --- POWER (1) -------- Ion Engine > --- PROPULSION (2) --- Aluminum Leg > --- UTILITY (2) ------ High-capacity Storage Unit Structural Scanner > --- WEAPON (2) ------- Assault Rifle Light Assault Rifle > --- INVENTORY (20) --- Improved Heat Sink Medium Storage Unit Large Storage Unit High-capacity Battery (250) Weapon Shielding Peak State ------------ > --- POWER ------------ Ion Engine > --- PROPULSION ------- Light Treads Light Treads > --- UTILITY ---------- Small Storage Unit High-capacity Battery > --- WEAPON ----------- Assault Rifle Light Assault Rifle > --- INVENTORY -------- Ion Engine Grenade Launcher [Rating: 7] Favorites ----------- Power Ion Engine Engine Ion Engine Propulsion Light Treads Treads Light Treads Leg Aluminum Leg Utility High-capacity Storage Unit Device Structural Scanner Storage High-capacity Storage Unit Protection Light Armor Plating Weapon Assault Rifle Ballistic Gun Assault Rifle Launcher Grenade Launcher Build | -11 -10 -10 ------- Run | Yrd Mat Min Slots Evolved . | . . . Power . | . . . Propulsion . | . . . Utility . | . . . Weapon . | . . . Parts Attached 15 | 6 4 5 Power 2 | 1 . 1 Engine 2 | 1 . 1 Core . | . . . Reactor . | . . . Propulsion 4 | 2 . 2 Treads 3 | 2 . 1 Leg 1 | . . 1 Wheel . | . . . Hover . | . . . Flight . | . . . Utility 5 | 1 3 1 Device 1 | . . 1 Storage 3 | 1 2 . Processor . | . . . Hackware . | . . . Protection 1 | . 1 . Artifact . | . . . Weapon 4 | 2 1 1 Energy Gun . | . . . Energy Cannon . | . . . Ballistic Gun 3 | 2 1 . Ballistic Cannon . | . . . Launcher 1 | . . 1 Special Weapon . | . . . Impact Weapon . | . . . Slashing Weapon . | . . . Piercing Weapon . | . . . Special Melee Weapon . | . . . Unidentified Prototypes . | . . . Parts Lost 7 | . 1 6 Power 1 | . . 1 Propulsion 3 | . . 3 Utility 1 | . 1 . Weapon 2 | . . 2 Highest Loss Streak 3 | . 1 3 To Critical Strikes . | . . . Average Backups 6 | . 5 7 Power . | . 1 . Propulsion . | . . . Utility 3 | . 2 3 Weapon 1 | . 1 1 Tool/Special . | . . . Unused Backups 4 | . . 4 Power . | . . . Propulsion . | . . . Utility 4 | . . 4 Weapon . | . . . Tool/Special . | . . . Average Slot Usage (%) 94 | . 98 90 Engine 13 | . 14 13 Treads 26 | . 28 25 Device 4 | . . 9 Storage 14 | . 14 14 Protection 6 | . 12 . Ballistic Gun 22 | . 28 16 Launcher 5 | . . 9 Peak Build Rating 7 | 6 7 7 Average Rating 6 | 4 6 6 On Entrance 4 | . 6 6 Naked Turns . | . . . Heaviest Build 52 | 13 52 51 Greatest Support 40 | 40 40 40 Greatest Overweight (x) 4 | . 1 4 Average Overweight (x) . | . . 1 Largest Inventory Capacity 20 | 8 20 20 Average Capacity 18 | 6 18 20 Most Carried 8 | 1 7 8 Average Carried 6 | . 5 7 Final Capacity 20 | 8 20 20 Final Carried 7 | 1 7 5 Class Distribution -------------------- 100% | Mutant Dominant Class ---------------- Mutant | -10/Materials Mutant | -10/Mines Resources | -11 -10 -10 ----------- Run | Yrd Mat Min Matter Collected 597 | 238 212 147 Remotely . | . . . Salvage Created 483 | . 205 278 Parts 42 | . 25 17 Haulers Intercepted . | . . . Recyclers Shooed . | . . . Parts Field Recycled . | . . . Retrieved Matter . | . . . Parts Self-Destructed . | . . . Prevented . | . . . Kills | -11 -10 -10 ------- Run | Yrd Mat Min Combat Hostiles Destroyed 19 | . 9 10 Guns 12 | . 9 3 AOE 7 | . . 7 Classes Destroyed 5 | . 3 2 Recycler 1 | . . 1 Watcher 1 | . 1 . Swarmer 10 | . 7 3 Grunt 8 | . 2 6 Assembled 1 | . . 1 Best Kill Streak 4 | . 3 4 Combat Bots Only 3 | . 3 3 Max Kills in Single Turn 3 | . 1 3 Gunslinging . | . . . Exploded 3 | . . 3 Melee . | . . . Uniques/NPCs Destroyed . | . . . Combat | -11 -10 -10 -------- Run | Yrd Mat Min Hostile Shots Fired 159 | . 89 70 Missed 59 | . 35 24 Hits 100 | . 54 46 Melee 3 | . . 3 Projectile 97 | . 54 43 Damage Taken 1218 | . 544 674 Core 254 | . 86 168 Absorbed by Shields . | . . . Core Remaining (%) 100 | 100 . . Volleys Fired 49 | . 26 23 Largest 2 | . 2 2 Hottest 50 | . 40 50 Shots Fired 87 | . 52 35 Gun 79 | . 52 27 Cannon . | . . . Launcher 8 | . . 8 Special . | . . . Kinetic 79 | . 52 27 Thermal . | . . . Explosive 8 | . . 8 Electromagnetic . | . . . Robot Hit Streak 11 | . 6 11 Robot Miss Streak 3 | . 3 1 Penetration Max . | . . . Secondary Targets 1 | . 1 . Max Gunslinging Chain 1 | . 1 . Shots Hit Robots 53 | . 26 27 Core Hits 32 | . 11 21 Critical Kills . | . . . Critical Parts Destroyed 1 | . 1 . Critical Strikes 1 | . 1 . Destroy 1 | . 1 . Melee Attacks . | . . . Impact . | . . . Slashing . | . . . Piercing . | . . . Sneak Attacks . | . . . Combat Hostiles . | . . . Follow-up Attacks . | . . . Damage Inflicted 1136 | . 324 812 Guns 518 | . 324 194 Cannons . | . . . Explosions 590 | . . 590 Melee . | . . . Ramming 28 | . . 28 Kinetic 518 | . 324 194 Thermal . | . . . Explosive 590 | . . 590 Electromagnetic . | . . . Impact . | . . . Slashing . | . . . Piercing . | . . . Highest Corruption 1 | . 1 1 Average Corruption 1 | . 1 1 Corruption Purged . | . . . Corruption Blocked . | . . . Effects 13 | . 4 9 Message Errors 5 | . 1 4 Matter Fused 2 | . 1 1 Heat Flow Errors 1 | . . 1 Energy Discharges 1 | . 1 . Data Loss (minor) 1 | . . 1 Data Loss (major) 2 | . . 2 Alerts 1 | . 1 . Overload Shots . | . . . Overflow Damage 34 | . . 34 Projectiles . | . . . Explosions 34 | . . 34 Melee . | . . . Knockbacks . | . . . Impact . | . . . Kinetic . | . . . Secondary . | . . . Self-Inflicted Damage 68 | . . 68 Shots 4 | . . 4 Rammed 5 | . . 5 Targets Rammed 5 | . . 5 Kicked . | . . . Crushed . | . . . Highest Temperature 234 | . 8 234 Average Temperature 46 | . 4 60 Received Heat Transfer 378 | . 165 213 Siege Activations . | . . . Martial Activations . | . . . Shielding Activations . | . . . Robots Disrupted . | . . . Combat Hostiles . | . . . Robots Corrupted . | . . . Combat Hostiles . | . . . Parts Fried . | . . . Impact Corruptions . | . . . Robots Melted . | . . . Combat Hostiles . | . . . Parts Melted . | . . . Heat Transferred . | . . . Parts Sabotaged . | . . . Parts Stolen . | . . . Parts Stripped . | . . . Power Chain Reactions . | . . . Alert | -11 -10 -10 ------- Run | Yrd Mat Min Maximum Alert Level . | . . . Low Security (%) 100 | 100 100 100 Level 1 . | . . . Level 2 . | . . . Level 3 . | . . . Level 4 . | . . . Level 5 . | . . . High Security . | . . . Max Security . | . . . Peak Influence 121 | . 70 121 Initial 3 | . . 3 Average 25 | . 22 30 Influence Increases 586 | . 288 298 Destroy 0b10 Robot/C 360 | . 180 180 Destroy 0b10 Robot/NC 10 | . 5 5 Destroy Leader 72 | . 42 30 Disable Machine 15 | . 15 . Destroy Structure 54 | . 1 53 Lose Combat Pursuer 75 | . 45 30 Influence Decreases 496 | . 280 216 Entered New Map 5 | . . 5 Time Decay 425 | . 270 155 Lost Part 66 | . 10 56 Squads Dispatched 1 | . 1 . Investigation 1 | . 1 . Extermination . | . . . Reinforcement . | . . . Assault . | . . . Garrison . | . . . Intercept . | . . . Searches Triggered . | . . . Construction Impeded . | . . . Haulers Reinforced . | . . . Active Scanning Responses . | . . . Cargo Convoy Interrupts . | . . . Stealth | -11 -10 -10 --------- Run | Yrd Mat Min Distress Signals 1 | . . 1 Communications Jammed . | . . . Distress Signals . | . . . Times Spotted 32 | . 18 14 Peak Tracking Total 4 | . 3 4 Tactical Retreats 6 | . 3 3 Traps | -11 -10 -10 ------- Run | Yrd Mat Min Traps Triggered 2 | . 2 . Indirectly . | . . . Trap Hack Attempts . | . . . Triggered . | . . . Disarmed . | . . . Reprogrammed . | . . . Reused . | . . . Traps Extracted . | . . . Installed . | . . . Triggered . | . . . Machines | -11 -10 -10 ---------- Run | Yrd Mat Min Machines Disabled 1 | . 1 . Max in Single Turn 1 | . 1 . Machines Repaired . | . . . Machines Dismantled . | . . . Machines Sabotaged . | . . . Overloaded Fab Kills . | . . . Hacking | -11 -10 -10 --------- Run | Yrd Mat Min Machines Accessed 1 | . 1 . Terminals 1 | . 1 . Fabricators . | . . . Repair Stations . | . . . Recycling Units . | . . . Scanalyzers . | . . . Garrison Access . | . . . Total Hacks 1 | . 1 . Successful 1 | . 1 . Failed . | . . . Catastrophic . | . . . Database Lockouts . | . . . Manual . | . . . Terminals 1 | . 1 . Fabricators . | . . . Repair Stations . | . . . Recycling Units . | . . . Scanalyzers . | . . . Garrison Access . | . . . Terminal Hacks 1 | . 1 . Record 1 | . 1 . Fabricator Hacks . | . . . Repair Station Hacks . | . . . Recycling Unit Hacks . | . . . Scanalyzer . | . . . Garrison Access Hacks . | . . . Unauthorized Hacks . | . . . Terminals . | . . . Fabricators . | . . . Repair Stations . | . . . Recycling Units . | . . . Scanalyzers . | . . . Garrison Access . | . . . Data Cores Recovered . | . . . Used . | . . . Hacking Detections . | . . . Full Trace Events . | . . . Feedback Events . | . . . Feedback Blocked . | . . . Robot Schematics Acquired . | . . . Robots Built . | . . . Authchips . | . . . Time . | . . . Total Robot Build Rating . | . . . Part Schematics Acquired . | . . . Parts Built . | . . . Authchips . | . . . Time . | . . . Total Part Build Rating . | . . . Parts Repaired . | . . . Time . | . . . Parts Recycled . | . . . Recycled Matter . | . . . Retrieved Matter . | . . . Retrieved Components . | . . . Parts Scanalyzed . | . . . Part Schematics Acquired . | . . . Parts Damaged . | . . . Bothacking | -11 -10 -10 ------------ Run | Yrd Mat Min Used RIF Installer . | . . . Robots Hacked . | . . . Non-combat . | . . . Combat . | . . . Robot Hacks Applied . | . . . Relay Couplers Released . | . . . Fabnet Peak Effective % . | . . . Robots Rewired . | . . . Allies Hacked . | . . . Hacks Repelled . | . . . Allies | -11 -10 -10 -------- Run | Yrd Mat Min Total Allies . | . . . Largest Group . | . . . Highest-Rated Group . | . . . Highest-Rated Ally . | . . . Total Orders . | . . . Ally Attacks . | . . . Total Damage . | . . . Kills . | . . . Allies Corrupted . | . . . Allies Melted . | . . . Intel | -11 -10 -10 ------- Run | Yrd Mat Min Active Infowar (turns) 628 | . . 628 Structural 628 | . . 628 Robot Analysis Total . | . . . Derelict Logs Recovered 2 | . . 2 Drone Launches . | . . . Drone Recoveries . | . . . Exploration | -11 -10 -10 ------------- Run | Yrd Mat Min Turns Passed 1940 | 77 910 953 Spaces Moved 755 | 44 359 352 Core 3 | 3 . . Treads 747 | 41 359 347 Legs 5 | . . 5 Wheels . | . . . Hover . | . . . Flight . | . . . Fastest Speed 50 | 50 160 240 Average Speed 231 | 152 226 247 Slowest Speed 400 | 160 240 400 Overloaded Moves . | . . . Propulsion Burnouts . | . . . Robots Hopped . | . . . Potential Cave-ins . | . . . Cave-ins Triggered . | . . . Exploration Rate (%) 44 | 4 56 74 Regions Visited 2 Branch Regions 1 Pre-discovered Areas . | . . . Known Exits Taken . | . . . Unknown Exits Taken 2 | 1 1 . Scrap Searched . | . . . Spaces Dug . | . . . Terrain Destroyed 74 | . . 74 Melee . | . . . Projectile . | . . . AOE 74 | . . 74 Terrain Rammed . | . . . Walls Destroyed . | . . . Machines Disabled . | . . . Actions | -11 -10 -10 --------- Run | Yrd Mat Min Total 852 | 51 407 394 Wait 12 | 1 9 2 Move 753 | 43 358 352 Hop . | . . . Pick Up 9 | 1 6 2 Fast Attach 10 | 6 2 2 Attach 8 | . 2 6 Detach 5 | . 3 2 Swap . | . . . Drop 1 | . 1 . Fire 49 | . 26 23 Melee . | . . . Ram . | . . . Kick . | . . . Crush 5 | . . 5 Escape Stasis . | . . . Rewire . | . . . Trap . | . . . Miscellaneous . | . . . Route ------- -11/Scrapyard -10/Materials (discovered 3 exits: [*Mat] / [*Min x2]) -10/Mines (discovered 2 exits: [*Mat] / [Sub]) History --------- Turn | Location | Event 51 | -11/Scrapyard | Discovered new exit (range 15) 78 | -11/Scrapyard | Entered Materials 82 | -10/Materials | Discovered new exit (range 13) 302 | -10/Materials | Build established: Mutant 471 | -10/Materials | Discovered new exit (range 10) 935 | -10/Materials | Discovered new exit (range 16) 988 | -10/Materials | Entered Mines 1314 | -10/Mines | Discovered new exit (range 4) 1414 | -10/Mines | Learned Materials trap positions 1500 | -10/Mines | Discovered new exit (range 15) 1698 | -10/Mines | Core integrity fell below 50% 1740 | -10/Mines | Lost 3 parts (1p1n1w) 1798 | -10/Mines | Excavation squad dispatched 1798 | -10/Mines | A large section of the Mines collapsed 1883 | -10/Mines | Core integrity fell below 20% 1941 | -10/Mines | Destroyed by G-34 Mercenary with Small Laser Last Messages --------------- ALERT: Suspicious cave-in, suspected derelict activity in mines. Dispatching escorted excavation squad. Slammed into as-23439. Lgt. Treads destroyed. Grenade Launcher destroyed. Slammed into as-23439. as-58254 destroyed. System corrupted: Component data lost. G-34 Mercenary destroyed. U-05 Engineer destroyed. Slammed into T-07 Excavator. Acquired 29 matter. Lgt. Treads destroyed. G-34 Mercenary destroyed. K-01 Serf collects debris. T-07 Excavator destroyed. Acquired Aluminum Leg. 6470,WWUTSTCLYUYN9Q3O5YT=EN> K-01 Serf collects debris. [Achievement: First Step to Greatness] Map ----- +----------------------------------------------------+ | ## ###???####### ###???#### """ # | | ## ######## ########### """ | | ## ####### ########## | | ## #### ### ## | | ### ## ### ## | | ?### #### ## ##### #### | | ?### ##### ###### ##### ##### | | ??## ##### ##### ###?## ###?? | | ?### ##### #### ## ######### ##??? | | #### ##### ### #### ### ####### ###??? | | ### ## ### #### ## ##### ###??? | | ## # ### ??## ## ##### # ##???? | | ## #### ??## # ## ###### | | ## ######## ??### # # ###### | | ## ###########??### # #* #### # | | ### ####????####???###### # # ### | | ### ####????????????######## ### | | ?## ####????????????????##### ! ! # | | ?## ###??????????????????## # | | ?## ##??????????????????#### ### | | ### ##??????????######??#### # # ##### | | ### ##??###????########????### #####??# | | ## ##??# ##??#### ########## ##????## | | ## ###??# #?#### ######### ##???## | | ### ###??#= ##### k % ==!#### ###### | | #### ###### [###!@u #####%#### ###### # | | ?#### #### g % ####### #### ## | | ??### #####?## #### #### ##### | | ??## ####???## #### #### ####? | | ??## #### #######????## #### ##?# #???? | | ??### ##### #####??????## #### ##?# #???? | | ??#### ###### #??????????## #### ##?# #???? | | ???#########?## #??????????## % #### ???? | | ????##<####??## #??????????### ### #### ##??? | | ??????????????# ??????????### ###""### ##??? | | ?????????????? ???????????## ##" ### ##??? | | ?????????????? ##???????????##############??? | | ??????????????##?????????????##############??? | | ????????????????????????????????### #??????? | | ?????????????????????????????????## ?????? | | ?????????????????????????????????### #???? | | ?????????????????????????????????##### ##???? | | ???????????????????????????????????### ###???? | | ?????????????????????????????????????? ###???? | | ?????????????????????????????????????? ##????? | | ?????????????????????????????????????? ##????? | | ?????????????????????????????????????? ##????? | | ?????????????????????????????????????????????? | | ?????????????????????????????????????????????? | | ?????????????????????????????????????????????? | +----------------------------------------------------+ Best States ------------- Heat Dissipation 25 Energy Generation 10 Energy Capacity 250 Matter Stores 300 Matter Capacity 300 Sight Range 16 Terrain Scan Density 10 Armor Coverage 150 Evasion (%) 40 Recoil Reduction 2 Item Schematics ----------------- None Robot Schematics ------------------ None Fabricated ------------ Nothing Repaired ---------- Nothing Alien Tech Used ----------------- None Achievements -------------- First Step to Greatness Challenges ------------ None Game ------ Seed FlightTacticalDetonator Manual? 0 Play Time 00:12:57 Cumulative 0.2 hours Start 2025.08.04 @ 22:25:35 End 2025.08.04 @ 22:38:42 Sessions 1 Manual Loads 0 Difficulty Rogue Special Mode None Game No. 1 Rogue 1 Adventurer 0 Explorer 0 Win Type - Total 0 Types 0/0/0/0/0/0/0/0/0/0 Lore% 0 Gallery% 1 Achievement% 1 Wizard Run 0 Options --------- Layout 1 ASCII 0 Keyboard 1 Movement Vi Keybinds 0 Fullscreen 0 Font 18/SmallcapsGlow Map View 76x50 Zoom Use 0% Tactical HUD 0 Map Filters NONE Filters NONE Steam 0 RUN: 06d21242-a4d7-4c24-ad7c-778a122c6316